Cogmind - Beta 17 @@@ ROGUE MODE // 2026.08.09 @ 19:56:38 Player: C-Log Result: Destroyed by G-34 Mercenary with Small Laser Performance ------------- Evolutions (1) 500 Regions Visited (2) 400 Robots Destroyed (18) 90 Value Destroyed (456) 456 Prototype IDs (0) 0 Alien Tech Used (0) 0 Bonus (0) 0 TOTAL SCORE: 1446 Bonus ------- None Cogmind --------- Core Integrity 0/400 Matter 92/300 Energy 100/100 System Corruption 0% Temperature Cool (6) Movement Core (200) Ox3 Location -9/Materials Parts ------- > --- POWER (1) -------- (None) > --- PROPULSION (2) --- (None) > --- UTILITY (4) ------ Medium Storage Unit Signal Interpreter > --- WEAPON (2) ------- (None) > --- INVENTORY (10) --- Ion Engine Light Ion Engine Wheel Small Storage Unit Peak State ------------ > --- POWER ------------ Light Nuclear Core > --- PROPULSION ------- Aluminum Leg Aluminum Leg > --- UTILITY ---------- Small Storage Unit Signal Interpreter Improved Terrain Scanner Medium Armor Plating > --- WEAPON ----------- Heavy EM Pulse Gun Mini Grenade Launcher > --- INVENTORY -------- Ion Engine Light Ion Engine Grenade Launcher [Rating: 16] Favorites ----------- Power Ion Engine Engine Ion Engine Power Core Light Nuclear Core Propulsion Aluminum Leg Treads Light Treads Leg Aluminum Leg Utility Small Storage Unit Device Improved Terrain Scanner Storage Small Storage Unit Processor Signal Interpreter Protection Medium Armor Plating Weapon Assault Rifle Energy Gun Heavy EM Pulse Gun Energy Cannon Beam Cannon Ballistic Gun Assault Rifle Launcher Grenade Launcher Special Weapon Mining Laser Build | -11 -10 -9 ------- Run | Yrd Mat Mat Slots Evolved 2 | . . 2 Power . | . . . Propulsion . | . . . Utility 2 | . . 2 Weapon . | . . . Parts Attached 28 | 8 9 11 Power 3 | 2 1 . Engine 2 | 2 . . Core 1 | . 1 . Reactor . | . . . Propulsion 5 | 2 2 1 Treads 1 | . . 1 Leg 4 | 2 2 . Wheel . | . . . Hover . | . . . Flight . | . . . Utility 9 | 2 2 5 Device 4 | 1 1 2 Storage 2 | 1 . 1 Processor 1 | . 1 . Hackware . | . . . Protection 2 | . . 2 Artifact . | . . . Weapon 11 | 2 4 5 Energy Gun 4 | . 1 3 Energy Cannon 1 | . 1 . Ballistic Gun 2 | 2 . . Ballistic Cannon . | . . . Launcher 3 | . 1 2 Special Weapon 1 | . 1 . Impact Weapon . | . . . Slashing Weapon . | . . . Piercing Weapon . | . . . Special Melee Weapon . | . . . Unidentified Prototypes . | . . . Parts Lost 17 | . 4 13 Power 1 | . . 1 Propulsion 5 | . 2 3 Utility 4 | . . 4 Weapon 7 | . 2 5 Highest Loss Streak 8 | . 3 8 To Critical Strikes . | . . . Average Backups 3 | 2 5 2 Power 1 | . 1 2 Propulsion . | . . . Utility . | . 1 . Weapon 1 | . 2 . Tool/Special . | . . . Unused Backups 2 | . 2 . Power . | . . . Propulsion 1 | . 1 . Utility 1 | . 1 . Weapon . | . . . Tool/Special . | . . . Average Slot Usage (%) 90 | . 97 83 Engine 5 | . 10 . Core 5 | . 2 8 Leg 22 | . 27 18 Device 12 | . 14 10 Storage 10 | . 10 11 Processor 7 | . 3 11 Protection 2 | . . 5 Energy Gun 3 | . 1 6 Ballistic Gun 9 | . 17 . Launcher 5 | . 1 9 Special Weapon 3 | . 5 1 Peak Build Rating 16 | 7 10 16 Average Rating 9 | 5 7 12 On Entrance 5 | . 7 8 Avg Prop Armor Cover (%) . | . . . Naked Turns . | . . . Heaviest Build 24 | 14 14 24 Greatest Support 20 | 20 20 20 Greatest Overweight (x) 3 | . 3 3 Average Overweight (x) . | . . . Largest Inventory Capacity 10 | 8 8 10 Average Capacity 7 | 7 7 8 Most Carried 7 | 4 7 4 Average Carried 4 | 2 5 2 Final Capacity 10 | 8 5 10 Final Carried 5 | 4 5 4 Class Distribution -------------------- 63% | Mutant 36% | Scavenger-Mutant Dominant Class ---------------- Mutant | -10/Materials Scavenger-Mutant | -9/Materials Resources | -11 -10 -9 ----------- Run | Yrd Mat Mat Matter Collected 561 | 332 161 68 Remotely . | . . . Salvage Created 588 | 139 288 161 Parts 28 | 10 13 5 Haulers Intercepted . | . . . Recyclers Shooed 1 | 1 . . Parts Field Recycled . | . . . Retrieved Matter . | . . . Parts Self-Destructed . | . . . Prevented . | . . . Parts Restored . | . . . Kills | -11 -10 -9 ------- Run | Yrd Mat Mat Combat Hostiles Destroyed 12 | . 9 3 Guns 7 | . 7 . AOE 5 | . 2 3 Classes Destroyed 6 | 2 2 2 Builder 1 | . . 1 Tunneler 3 | 3 . . Recycler 2 | 1 . 1 Swarmer 3 | . 3 . Grunt 6 | . 6 . Sentry 3 | . . 3 Best Kill Streak 4 | 2 4 4 Combat Bots Only 4 | . 4 2 Max Kills in Single Turn 2 | 1 2 1 Gunslinging . | . . . Exploded 2 | . 2 1 Melee . | . . . Uniques/NPCs Destroyed . | . . . Combat | -11 -10 -9 -------- Run | Yrd Mat Mat Hostile Shots Fired 160 | . 78 82 Missed 43 | . 18 25 Hits 117 | . 60 57 Projectile 117 | . 60 57 Critical Strikes 4 | . 1 3 Damage Taken 1952 | . 773 1179 Core 608 | . 199 409 Absorbed by Shields . | . . . Regen/Repaired (Parts) 76 | . 29 47 Core Remaining (%) 60 | 100 20 . Volleys Fired 71 | 14 43 14 Largest 2 | 2 2 2 Hottest 165 | 40 165 100 Shots Fired 122 | 28 77 17 Gun 89 | 28 61 . Cannon 6 | . 6 . Launcher 13 | . 1 12 Special 14 | . 9 5 Kinetic 82 | 28 54 . Thermal 27 | . 22 5 Explosive 13 | . 1 12 Electromagnetic . | . . . Robot Hit Streak 11 | 10 11 11 Robot Miss Streak 2 | 1 2 . Penetration Max . | . . . Secondary Targets 1 | . 1 . Max Gunslinging Chain 1 | . 1 . Shots Hit Robots 77 | 21 45 11 Core Hits 35 | 6 17 12 Critical Kills 1 | . 1 . Critical Parts Destroyed . | . . . Critical Strikes 2 | . 2 . Burn 1 | . 1 . Destroy 1 | . 1 . Melee Attacks . | . . . Impact . | . . . Slashing . | . . . Piercing . | . . . Sneak Attacks . | . . . Combat Hostiles . | . . . Follow-up Attacks . | . . . Damage Inflicted 1377 | 229 642 506 Guns 701 | 229 472 . Cannons 70 | . 70 . Explosions 582 | . 76 506 Melee . | . . . Ramming . | . . . Kinetic 618 | 229 389 . Thermal 177 | . 177 . Explosive 582 | . 76 506 Electromagnetic . | . . . Impact . | . . . Slashing . | . . . Piercing . | . . . Highest Corruption . | . . . Average Corruption . | . . . Corruption Purged . | . . . Corruption Blocked . | . . . Overload Shots . | . . . Overflow Damage 65 | . 4 61 Projectiles . | . . . Explosions 65 | . 4 61 Melee . | . . . Knockbacks . | . . . Impact . | . . . Kinetic . | . . . Secondary . | . . . Self-Inflicted Damage 414 | . 40 374 Shots 11 | . 1 10 Rammed . | . . . Targets Rammed . | . . . Kicked . | . . . Crushed . | . . . Highest Temperature 333 | . 333 56 Average Temperature 69 | . 82 18 Received Heat Transfer 642 | . 363 279 Effects 2 | . 2 . Interference 1 | . 1 . Short Circuit 1 | . 1 . Siege Activations . | . . . Martial Activations . | . . . Shielding Activations . | . . . Robots Disrupted . | . . . Combat Hostiles . | . . . Robots Corrupted . | . . . Combat Hostiles . | . . . Parts Fried . | . . . Impact Corruptions . | . . . Robots Melted . | . . . Combat Hostiles . | . . . Parts Melted 1 | . 1 . Heat Transferred 457 | . 457 . Parts Sabotaged . | . . . Parts Stolen . | . . . Parts Stripped . | . . . Power Chain Reactions . | . . . Alert | -11 -10 -9 ------- Run | Yrd Mat Mat Maximum Alert Level . | . . . Low Security (%) 100 | 100 100 100 Level 1 . | . . . Level 2 . | . . . Level 3 . | . . . Level 4 . | . . . Level 5 . | . . . High Security . | . . . Max Security . | . . . Peak Influence 155 | 5 155 67 Initial 42 | . . 42 Average 43 | . 85 16 Influence Increases 507 | 20 316 171 Destroy 0b10 Robot/C 240 | . 180 60 Destroy 0b10 Robot/NC 30 | 20 . 10 Destroy Leader 70 | . 40 30 Successful Hack 17 | . 3 14 Disable Machine 15 | . . 15 Destroy Structure 60 | . 18 42 Lose Combat Pursuer 75 | . 75 . Influence Decreases 507 | 20 214 273 Entered New Map 60 | . . 60 Time Decay 318 | 20 174 124 Lost Part 129 | . 40 89 Squads Dispatched 3 | . 1 2 Investigation 2 | . 1 1 Extermination . | . . . Reinforcement 1 | . . 1 Assault . | . . . Garrison . | . . . Intercept . | . . . Searches Triggered . | . . . Construction Impeded . | . . . Haulers Reinforced . | . . . Active Scanning Responses . | . . . Cargo Convoy Interrupts . | . . . Stealth | -11 -10 -9 --------- Run | Yrd Mat Mat Distress Signals 2 | . . 2 Communications Jammed . | . . . Distress Signals . | . . . Times Spotted 26 | . 16 10 Peak Tracking Total 5 | . 5 4 Tactical Retreats 1 | . 1 . Traps | -11 -10 -9 ------- Run | Yrd Mat Mat Traps Triggered 1 | . 1 . Indirectly . | . . . Trap Hack Attempts . | . . . Triggered . | . . . Disarmed . | . . . Reprogrammed . | . . . Reused . | . . . Traps Extracted . | . . . Installed . | . . . Triggered . | . . . Machines | -11 -10 -9 ---------- Run | Yrd Mat Mat Machines Disabled 1 | . . 1 Max in Single Turn 1 | . . 1 Machines Repaired . | . . . Machines Dismantled . | . . . Machines Sabotaged . | . . . Overloaded Fab Kills . | . . . Hacking | -11 -10 -9 --------- Run | Yrd Mat Mat Machines Accessed 8 | . 3 5 Terminals 4 | . 1 3 Fabricators . | . . . Repair Stations 2 | . 1 1 Recycling Units 2 | . 1 1 Scanalyzers . | . . . Garrison Access . | . . . Total Hacks 15 | . 4 11 Successful 8 | . 3 5 Failed 7 | . 1 6 Catastrophic 3 | . 1 2 Database Lockouts . | . . . Manual 7 | . . 7 Terminals 9 | . 1 8 Fabricators . | . . . Repair Stations 4 | . 2 2 Recycling Units 2 | . 1 1 Scanalyzers . | . . . Garrison Access . | . . . Terminal Hacks 2 | . . 2 Level Access Points 1 | . . 1 Zone Layout 1 | . . 1 Fabricator Hacks . | . . . Repair Station Hacks 4 | . 2 2 Scan Component 2 | . 1 1 Repair 2 | . 1 1 Recycling Unit Hacks 2 | . 1 1 Retrieve Components 2 | . 1 1 Scanalyzer . | . . . Garrison Access Hacks . | . . . Unauthorized Hacks . | . . . Terminals . | . . . Fabricators . | . . . Repair Stations . | . . . Recycling Units . | . . . Scanalyzers . | . . . Garrison Access . | . . . Data Cores Recovered . | . . . Used . | . . . Hacking Detections 5 | . 2 3 Full Trace Events 1 | . . 1 Feedback Events . | . . . Feedback Blocked . | . . . Robot Schematics Acquired . | . . . Robots Built . | . . . Authchips . | . . . Time . | . . . Total Robot Build Rating . | . . . Part Schematics Acquired . | . . . Parts Built . | . . . Authchips . | . . . Time . | . . . Total Part Build Rating . | . . . Part Studies Acquired . | . . . Parts Repaired 2 | . 1 1 Time 64 | . 26 38 Parts Recycled . | . . . Recycled Matter . | . . . Retrieved Matter . | . . . Retrieved Components 5 | . 3 2 Parts Scanalyzed . | . . . Part Schematics Acquired . | . . . Parts Damaged . | . . . Bothacking | -11 -10 -9 ------------ Run | Yrd Mat Mat Used RIF Installer . | . . . Robots Hacked . | . . . Non-combat . | . . . Combat . | . . . Robot Hacks Applied . | . . . Relay Couplers Released . | . . . Fabnet Peak Effective % . | . . . Robots Rewired . | . . . Allies Hacked . | . . . Hacks Repelled . | . . . Allies | -11 -10 -9 -------- Run | Yrd Mat Mat Total Allies . | . . . Largest Group . | . . . Highest-Rated Group . | . . . Highest-Rated Ally . | . . . Total Orders . | . . . Ally Attacks . | . . . Total Damage . | . . . Kills . | . . . Allies Corrupted . | . . . Allies Melted . | . . . Intel | -11 -10 -9 ------- Run | Yrd Mat Mat Active Infowar (turns) 786 | 16 406 364 Sensors 152 | . 152 . Terrain 364 | . . 364 Seismic 270 | 16 254 . Robot Analysis Total . | . . . Derelict Logs Recovered . | . . . Drone Launches . | . . . Drone Recoveries . | . . . Exploration | -11 -10 -9 ------------- Run | Yrd Mat Mat Turns Passed 1053 | 160 449 444 Spaces Moved 513 | 92 207 214 Core 16 | 6 2 8 Treads 32 | . . 32 Legs 465 | 86 205 174 Wheels . | . . . Hover . | . . . Flight . | . . . Fastest Speed 50 | 50 120 120 Average Speed 135 | 115 121 159 Slowest Speed 200 | 120 200 200 Overloaded Moves . | . . . Propulsion Burnouts . | . . . Robots Hopped . | . . . Potential Cave-ins . | . . . Cave-ins Triggered . | . . . Exploration Rate (%) 19 | 5 31 23 Regions Visited 2 Branch Regions . Pre-discovered Areas . | . . . Known Exits Taken 1 | . 1 . Unknown Exits Taken 1 | 1 . . Scrap Searched . | . . . Spaces Dug 13 | . 8 5 Terrain Destroyed 63 | . 15 48 Melee . | . . . Projectile 13 | . 8 5 AOE 50 | . 7 43 Terrain Rammed . | . . . Walls Destroyed . | . . . Machines Disabled . | . . . Actions | -11 -10 -9 --------- Run | Yrd Mat Mat Total 715 | 116 312 287 Wait 80 | . 42 38 Move 511 | 91 206 214 Hop . | . . . Pick Up 9 | 3 5 1 Fast Attach 24 | 7 7 10 Attach 5 | . 1 4 Detach 1 | . . 1 Swap 6 | 1 3 2 Drop 8 | . 5 3 Fire 71 | 14 43 14 Melee . | . . . Ram . | . . . Kick . | . . . Crush . | . . . Escape Stasis . | . . . Rewire . | . . . Trap . | . . . Miscellaneous . | . . . Route ------- -11/Scrapyard -10/Materials -9/Materials (discovered 3 exits: Mat x3) History --------- Turn | Location | Event 3 | -11/Scrapyard | Discovered new exit (range 15) 161 | -11/Scrapyard | Entered Materials 318 | -10/Materials | Build established: Mutant 425 | -10/Materials | Discovered new exit (range 10) 448 | -10/Materials | Repaired Ion Engine 565 | -10/Materials | Core integrity fell below 50% 601 | -10/Materials | Lost 3 parts (2n1w) 609 | -10/Materials | Identified exit to Materials 610 | -10/Materials | Entered another Materials area 610 | -9/Materials | Evolved 2 slots: Utility x2 654 | -9/Materials | Identified exit to Materials 772 | -9/Materials | Repaired Lgt. Nuclear Core 980 | -9/Materials | Core integrity fell below 50% 1019 | -9/Materials | Lost 8 parts (1p2n3u2w) 1038 | -9/Materials | Core integrity fell below 20% 1054 | -9/Materials | Destroyed by G-34 Mercenary with Small Laser Last Messages --------------- 00988_ Acquired 15 matter. 00989_ K-01 Serf collects debris. 00994_ Acquired Lgt. Treads. 00998_ K-01 Serf collects debris. 01003_ M-13 Machinist repairs Y-45 Defender. 01008_ The unstable cave ceiling collapses. 01008_ U-05 Engineer lays Concrete. 01012_ K-01 Serf collects debris. 01022_ Critical hit (Burn: +37). 01025_ K-01 Serf collects debris. 01026_ Acquired EM Shotgun. 01026_ EM Shotgun destroyed. 01029_ K-01 Serf collects debris. 01031_ Acquired Wheel. 01032_ K-01 Serf collects debris. 01033_ Acquired EM Shotgun. 01038_ K-01 Serf collects debris. 01039_ EM Shotgun destroyed. 01043_ K-01 Serf collects debris. 01050_ Lgt. Treads destroyed. Map ----- +----------------------------------------------------+ | ???????# !!!#???#??????????????????????? | | ???????# """"" !!!#?????#???#?#?????????#????? | | ???????# """"" !!!#???????????#???????#??????? | | ????#??# """"" #???#????????##????????????? | | ???????# """"" ############# ##?????????#?? | | ??????## """"" # + #?#?????????? | | ??????# """"" + #??# """ ##?????#????? | | ??????## """"" # #??# ""R" #??????????? | | ???#???# # ##?# "" " #??##??????? | | #??????# # #?## [ #####?????#?? | | ?????#?# # #?# ##########?? | | ???????# / # #?## ### """ #?? | | ???????######+####### #?# # ^# """ #?? | | ???????#?# #???# #?# # # """ #?? | | ?????????# ##### ######## #k / #?# | | ?????????# % # #?? | | ????????## = # #?? | | ???####### ########## = ############?? | | ??## # # #?##??#??# [##?????# | | ??# # ####??????#?# + #??????? | | ?## ########## # """ #??????? | | ??# # ! # k # "R [#?##???# | | ??# ! # # # """ #??#???# | | #?# # ] # # ##?#???? | | ??# #] # !!!########??????# | | ??# "" # @ g! ##??????#?????# | | ??### """ # # gu T#???#?????#??# | | ????############# # ##????????????? | | ????????????????# # #?#????#????#?? | | ????????????????#[! + #?#???????#???? | | ???????#???????################ ##??##?#??????? | | ????????????????????#?????????# ##????????##??? | | ??????????????????????????????# #?#???????????? | | ??????????? ??????????????????# #?????????????? | | ??????????? ############### ###???????????? | | ?????????? #????#????#?? | | ?????????? ##??##??????? | | ?????????? #??#????????? | | ?????????????########### ##??????????? | | ??????????????????????## #????#???#??? | | ???????????? ??????????# """" ###########?? | | ?????????????"?????????# """" # #?? | | ?????????????????####### """" # !"" #?? | | ?????????????????# # Y" #?? | | ?????????????????# # """ "" #?? | | ?????????????????+ # """ #?? | | ?????????????????# !! # """ #?? | | ?????????????????# ! "T" # #?? | | ?????????????? # #?? | | ????????????? ###+#######?? | +----------------------------------------------------+ Best States ------------- Heat Dissipation 50 Energy Generation 14 Energy Capacity 250 Matter Stores 300 Matter Capacity 300 Sight Range 16 Robot Scan Range 14 Terrain Scan Range 16 Terrain Scan Density 10 Armor Coverage 225 Evasion (%) 55 Recoil Reduction 1 Item Schematics ----------------- None Robot Schematics ------------------ None Fabricated ------------ Nothing Repaired ---------- Ion Engine | 51% | -10/Materials Lgt. Nuclear Core | 6% | -9/Materials Studied --------- None Alien Tech Used ----------------- None Achievements -------------- None Challenges ------------ None Game ------ Seed CloakTerrabombSplitter Manual? 0 Play Time 00:13:43 Cumulative 21.1 hours Start 2026.08.09 @ 19:44:48 End 2026.08.09 @ 19:56:38 Sessions 1 Manual Loads 0 Difficulty Rogue Special Mode None Game No. 17 Rogue 13 Adventurer 4 Explorer 0 Win Type - Total 0 Types 0/0/0/0/0/0/0/0/0/0 Lore% 24 Gallery% 21 Achievement% 22 Wizard Run 0 Options --------- Layout 1 ASCII 0 Keyboard 0 Movement Mouse Keybinds 0 Fullscreen 1 Font 32/SmallcapsGlow Map View 50x35 Zoom Use 0% Tactical HUD 1 Map Filters NONE Filters NONE Steam 1 RUN: b60a151b-f553-4648-b59e-628f9e206f47